Cogmind - Beta 11.1 @@@ ROGUE MODE // 2022.04.24 @ 19:51:04 Player: Azken Zutik Result: Core destroyed Performance ------------- Evolutions (2) 1000 Regions Visited (5) 1000 Robots Destroyed (84) 420 Value Destroyed (1352) 1352 Prototype IDs (39) 780 Alien Tech Used (0) 0 Bonus (612) 612 TOTAL SCORE: 5164 Bonus ------- Follower Combat Kills 379 Aligned with FarCom 300 Friendly Fire -67 Cogmind --------- Core Integrity 0/550 Matter 45/300 Energy 100/100 System Corruption 21% Temperature Cool (0) Movement Core (1350) Ox26 Location -8/Materials Parts ------- > --- POWER (5) -------- (None) > --- PROPULSION (2) --- (None) > --- UTILITY (2) ------ Huge Storage Unit > --- WEAPON (2) ------- (None) > --- INVENTORY (25) --- High-capacity Matter Pod (200) Core Shielding System Purifier AWS/Thermal Peak State ------------ > --- POWER ------------ Heavy Deuterium Engine > --- PROPULSION ------- Light Treads Light Treads > --- UTILITY ---------- High-capacity Storage Unit Thief Drone Bay > --- WEAPON ----------- AWS/Thermal > --- INVENTORY -------- Light Treads Light Treads Huge Storage Unit High-capacity Matter Pod Core Shielding Shield Generator Advanced Component Analysis Suite System Purifier Trap Extractor Trap Extractor Heavy Assault Rifle Autogun Autogun Rocket Launcher Mini Grenade Launcher Mini Grenade Launcher Mini Grenade Launcher Datajack Heavy Hammer Deploy-a-Sentry [Rating: 36] Favorites ----------- Power Heavy Deuterium Engine Engine Heavy Deuterium Engine Power Core Light Nuclear Core Reactor Cold Fusion Reactor Propulsion Light Treads Treads Light Treads Leg Aluminum Leg Utility Shield Generator Device Shield Generator Storage High-capacity Storage Unit Protection Core Shielding Weapon Autogun Energy Gun AWS/Thermal Ballistic Gun Autogun Launcher Mini Grenade Launcher Impact Weapon Heavy Hammer Special Melee Weapon Datajack Build | -11 -10 -10 -10 -9 -8 ------- Run | Scr Mat Min Exi Min Mat Slots Evolved 4 | . . . . . 4 Power 4 | . . . . . 4 Propulsion . | . . . . . . Utility . | . . . . . . Weapon . | . . . . . . Parts Attached 68 | 3 15 8 22 16 4 Power 6 | . 1 1 4 . . Engine 4 | . 1 1 2 . . Core 1 | . . . 1 . . Reactor 1 | . . . 1 . . Propulsion 7 | 2 . 2 3 . . Treads 7 | 2 . 2 3 . . Leg . | . . . . . . Wheel . | . . . . . . Hover . | . . . . . . Flight . | . . . . . . Utility 23 | 1 6 2 6 6 2 Device 17 | 1 3 2 4 6 1 Storage 5 | . 3 . 1 . 1 Processor . | . . . . . . Hackware . | . . . . . . Protection 1 | . . . 1 . . Artifact . | . . . . . . Weapon 32 | . 8 3 9 10 2 Energy Gun 2 | . . . 2 . . Energy Cannon . | . . . . . . Ballistic Gun 10 | . 3 2 2 3 . Ballistic Cannon . | . . . . . . Launcher 9 | . 4 . 2 1 2 Special Weapon . | . . . . . . Impact Weapon 6 | . . . 2 4 . Slashing Weapon . | . . . . . . Piercing Weapon . | . . . . . . Special Melee Weapon 5 | . 1 1 1 2 . Unidentified Prototypes 1 | . . . . 1 . Parts Lost 15 | . . . 5 1 9 Power 3 | . . . 2 . 1 Propulsion 5 | . . . 3 . 2 Utility 3 | . . . . 1 2 Weapon 4 | . . . . . 4 Highest Loss Streak 4 | . . . 2 1 4 To Critical Strikes 2 | . . . 2 . . Average Slot Usage (%) 92 | . 100 100 94 98 18 Engine 12 | . 14 14 8 14 1 Treads 26 | . 28 28 27 28 1 Device 13 | . 14 14 13 13 3 Storage 13 | . 14 14 14 14 8 Energy Gun 1 | . . . 1 1 . Ballistic Gun 10 | . 19 27 16 5 . Launcher 5 | . 7 . 1 6 2 Impact Weapon 7 | . . . . 11 . Naked Turns . | . . . . . . Heaviest Build 93 | 14 93 93 93 61 81 Greatest Support 40 | 40 40 40 40 40 40 Greatest Overweight (x) 26 | . 2 2 2 1 26 Average Overweight (x) 1 | . . 2 1 1 13 Largest Inventory Capacity 25 | 8 25 25 25 20 25 Average Capacity 20 | 8 18 25 21 20 22 Most Carried 25 | 6 23 25 25 20 19 Average Carried 18 | 3 16 23 19 18 10 Final Capacity 25 | 8 25 25 20 20 25 Final Carried 25 | 3 23 25 20 18 5 Class Distribution -------------------- 100% | Mutant Dominant Class ---------------- Mutant | -10/Materials Mutant | -10/Mines Mutant | -10/Exiles Mutant | -9/Mines Mutant | -8/Materials Resources | -11 -10 -10 -10 -9 -8 ----------- Run | Scr Mat Min Exi Min Mat Matter Collected 3248 | 254 422 232 981 1359 . Remotely . | . . . . . . Salvage Created 2797 | 103 322 331 431 1610 . Parts 293 | 7 26 18 59 183 . Haulers Intercepted 2 | . 2 . . . . Recyclers Shooed 1 | . 1 . . . . Parts Field Recycled . | . . . . . . Retrieved Matter . | . . . . . . Parts Self-Destructed . | . . . . . . Prevented . | . . . . . . Kills | -11 -10 -10 -10 -9 -8 ------- Run | Scr Mat Min Exi Min Mat Combat Hostiles Destroyed 35 | . 6 7 7 15 . Guns 22 | . 2 7 1 12 . AOE 13 | . 4 . 6 3 . Classes Destroyed 11 | 2 5 . 3 1 . Worker 11 | . 2 . . 9 . Builder 60 | . 1 . . 59 . Tunneler 9 | 2 . 2 . 5 . Hauler 2 | . 2 . . . . Recycler 4 | 1 . . . 3 . Turret 2 | . . . 1 1 . Watcher 1 | . 1 . . . . Grunt 22 | . 6 7 . 9 . Demolisher 2 | . . . . 2 . Zionite 8 | . . . 8 . . Assembled 10 | . . . 6 4 . Best Kill Streak 8 | 2 2 2 8 4 . Combat Bots Only 6 | . 2 2 6 2 . Max Kills in Single Turn 3 | 1 2 1 3 2 . Gunslinging . | . . . . . . Exploded 3 | . 2 . 3 2 . Melee . | . . . . . . Uniques/NPCs Destroyed 4 | . . . 4 . . 8R-AWN (-10/Exiles) EX-DEC (-10/Exiles) EX-HEX (-10/Exiles) EX-BIN (-10/Exiles) Combat | -11 -10 -10 -10 -9 -8 -------- Run | Scr Mat Min Exi Min Mat Damage Taken 3132 | . 50 107 944 164 1867 Core 800 | . . . 233 10 557 Absorbed by Shields 317 | . 18 43 196 60 . Regen/Repaired (Parts) 48 | . 48 . . . . Core Remaining (%) 51 | 100 . . . 2 . Volleys Fired 328 | 6 32 19 77 190 4 Largest 2 | 2 2 2 2 1 2 Hottest 60 | 40 60 46 46 30 60 Shots Fired 490 | 12 59 38 148 225 8 Gun 373 | 12 52 38 118 153 . Cannon . | . . . . . . Launcher 117 | . 7 . 30 72 8 Special . | . . . . . . Kinetic 314 | 12 52 38 94 118 . Thermal 59 | . . . 24 35 . Explosive 117 | . 7 . 30 72 8 Electromagnetic . | . . . . . . Robot Hit Streak 16 | 3 5 6 16 9 . Robot Miss Streak 5 | 1 5 5 4 4 . Penetration Max . | . . . . . . Secondary Targets 4 | . . . 4 . . Max Gunslinging Chain 1 | . . . 1 . . Autonomous 59 | . . . 24 35 . Shots Hit Robots 279 | 7 27 21 108 116 . Core Hits 176 | 4 18 14 47 93 . Critical Kills . | . . . . . . Critical Parts Destroyed 8 | . . . 5 3 . Critical Strikes 9 | . . . 6 3 . Destroy 2 | . . . 2 . . Smash 7 | . . . 4 3 . Melee Attacks 71 | . . . 35 29 7 Impact 66 | . . . 31 28 7 Slashing . | . . . . . . Piercing . | . . . . . . Sneak Attacks 22 | . . . 4 18 . Combat Hostiles . | . . . . . . Follow-up Attacks 4 | . . . 4 . . Damage Inflicted 9716 | 86 714 350 3221 5342 3 Guns 4033 | 86 350 318 1518 1761 . Cannons . | . . . . . . Explosions 3475 | . 338 . 732 2405 . Melee 2078 | . . . 971 1107 . Ramming 130 | . 26 32 . 69 3 Kinetic 2654 | 86 350 318 928 972 . Thermal 1379 | . . . 590 789 . Explosive 3475 | . 338 . 732 2405 . Electromagnetic . | . . . . . . Impact 2078 | . . . 971 1107 . Slashing . | . . . . . . Piercing . | . . . . . . Highest Corruption 21 | . . . . . 21 Average Corruption 14 | . . . . . 14 Corruption Purged . | . . . . . . Corruption Blocked . | . . . . . . Effects 66 | . . . . . 66 Message Errors 24 | . . . . . 24 Matter Fused 19 | . . . . . 19 Heat Flow Errors 4 | . . . . . 4 Energy Discharges 6 | . . . . . 6 Data Loss (minor) 9 | . . . . . 9 Data Loss (major) 2 | . . . . . 2 Misfires 1 | . . . . . 1 Alerts 1 | . . . . . 1 Overload Shots . | . . . . . . Overflow Damage 760 | . . . 119 633 8 Projectiles . | . . . . . . Explosions 169 | . . . 1 160 8 Melee 591 | . . . 118 473 . Knockbacks 8 | . . . 4 4 . Impact 8 | . . . 4 4 . Kinetic . | . . . . . . Secondary . | . . . . . . Self-Inflicted Damage 217 | . . . 41 . 176 Shots 7 | . . . 1 . 6 Rammed 19 | . 5 3 . 11 . Targets Rammed 21 | . 5 5 . 11 . Kicked . | . . . . . . Crushed 2 | . . 2 . . . Highest Temperature 155 | . 12 31 22 10 155 Average Temperature 11 | . 5 10 10 5 73 Received Heat Transfer 141 | . 24 71 . 46 . Siege Activations . | . . . . . . Robots Corrupted . | . . . . . . Combat Hostiles . | . . . . . . Parts Fried 11 | . . . . 11 . Impact Corruptions 21 | . . . 5 16 . Robots Melted . | . . . . . . Combat Hostiles . | . . . . . . Parts Melted . | . . . . . . Heat Transferred 1179 | . . . 180 999 . Parts Sabotaged . | . . . . . . Parts Stolen . | . . . . . . Parts Stripped . | . . . . . . Power Chain Reactions . | . . . . . . Missiles Intercepted . | . . . . . . Alert | -11 -10 -10 -10 -9 -8 ------- Run | Scr Mat Min Exi Min Mat Peak Influence 215 | 15 215 140 . 137 64 Initial 9 | . 9 . . . . Average 40 | 9 40 29 . 45 5 Maximum Alert Level 1 | . 1 . . . . Low Security (%) 99 | 100 93 100 . 100 100 Level 1 . | . 6 . . . . Level 2 . | . . . . . . Level 3 . | . . . . . . Level 4 . | . . . . . . Level 5 . | . . . . . . High Security . | . . . . . . Max Security . | . . . . . . Squads Dispatched 13 | . 3 . . 10 . Investigation 2 | . 2 . . . . Extermination . | . . . . . . Reinforcement 11 | . 1 . . 10 . Assault . | . . . . . . Garrison . | . . . . . . Intercept . | . . . . . . Searches Triggered . | . . . . . . Construction Impeded 10 | . . . . 10 . Haulers Reinforced . | . . . . . . Active Scanning Responses . | . . . . . . Cargo Convoy Interrupts . | . . . . . . Stealth | -11 -10 -10 -10 -9 -8 --------- Run | Scr Mat Min Exi Min Mat Distress Signals 5 | . 3 . . . 2 Communications Jammed . | . . . . . . Distress Signals . | . . . . . . Times Spotted 121 | . 9 10 80 19 3 Peak Tracking Total 9 | . 3 2 9 3 3 Tactical Retreats 11 | . . 1 10 . . Traps | -11 -10 -10 -10 -9 -8 ------- Run | Scr Mat Min Exi Min Mat Traps Triggered 3 | . 3 . . . . Indirectly . | . . . . . . Trap Hack Attempts 43 | . 43 . . . . Triggered . | . . . . . . Disarmed . | . . . . . . Reprogrammed 3 | . 3 . . . . Reused 3 | . . . 3 . . Traps Extracted 4 | . 3 1 . . . Installed 3 | . . . 3 . . Triggered 1 | . . 1 . . . Most Traps Carried 4 | . 3 4 4 1 1 Exploded 3 | . . . 3 . . Machines | -11 -10 -10 -10 -9 -8 ---------- Run | Scr Mat Min Exi Min Mat Machines Disabled 16 | . 5 1 6 4 . Max in Single Turn 4 | . 1 1 1 4 . Machines Sabotaged . | . . . . . . Garrisons Compromised . | . . . . . . Overloaded Fab Kills . | . . . . . . Hacking | -11 -10 -10 -10 -9 -8 --------- Run | Scr Mat Min Exi Min Mat Machines Accessed 6 | . 2 . 2 2 . Terminals 2 | . 1 . . 1 . Fabricators . | . . . . . . Repair Stations 1 | . 1 . . . . Recycling Units . | . . . . . . Scanalyzers . | . . . . . . Garrison Access . | . . . . . . Total Hacks 14 | . 8 . 2 4 . Successful 10 | . 6 . 2 2 . Failed 4 | . 2 . . 2 . Catastrophic . | . . . . . . Database Lockouts . | . . . . . . Manual 7 | . 5 1 1 . . Terminals 7 | . 4 . . 3 . Fabricators . | . . . . . . Repair Stations 4 | . 4 . . . . Recycling Units . | . . . . . . Scanalyzers . | . . . . . . Garrison Access . | . . . . . . Terminal Hacks 7 | . 3 . 2 2 . Record 1 | . . . 1 . . Robot Analysis 3 | . 3 . . . . Open Door 1 | . . . . 1 . Zone Layout 1 | . . . . 1 . EX-Prototype ID Bank 1 | . . . 1 . . Fabricator Hacks . | . . . . . . Repair Station Hacks 3 | . 3 . . . . Scan Component 2 | . 2 . . . . Repair 1 | . 1 . . . . Recycling Unit Hacks . | . . . . . . Scanalyzer . | . . . . . . Garrison Access Hacks . | . . . . . . Unauthorized Hacks . | . . . . . . Terminals . | . . . . . . Fabricators . | . . . . . . Repair Stations . | . . . . . . Recycling Units . | . . . . . . Scanalyzers . | . . . . . . Garrison Access . | . . . . . . Data Cores Recovered . | . . . . . . Used . | . . . . . . Hacking Detections 3 | . 2 . . 1 . Full Trace Events . | . . . . . . Feedback Events . | . . . . . . Feedback Blocked . | . . . . . . Robot Schematics Acquired . | . . . . . . Robots Built . | . . . . . . Authchips . | . . . . . . Time . | . . . . . . Total Robot Build Rating . | . . . . . . Part Schematics Acquired . | . . . . . . Parts Built . | . . . . . . Authchips . | . . . . . . Time . | . . . . . . Total Part Build Rating . | . . . . . . Parts Repaired 1 | . 1 . . . . Time 26 | . 26 . . . . Parts Recycled . | . . . . . . Recycled Matter . | . . . . . . Retrieved Matter . | . . . . . . Retrieved Components . | . . . . . . Parts Scanalyzed . | . . . . . . Part Schematics Acquired . | . . . . . . Parts Damaged . | . . . . . . Bothacking | -11 -10 -10 -10 -9 -8 ------------ Run | Scr Mat Min Exi Min Mat Used RIF Installer . | . . . . . . Robots Hacked 5 | . . . 4 1 . Non-combat 3 | . . . 3 . . Combat 2 | . . . 1 1 . Robot Hacks Applied 5 | . . . 4 1 . parse_system 5 | . . . 4 1 . Relay Couplers Released . | . . . . . . Fabnet Peak Effective % . | . . . . . . Robots Rewired . | . . . . . . Allies Hacked . | . . . . . . Hacks Repelled . | . . . . . . Allies | -11 -10 -10 -10 -9 -8 -------- Run | Scr Mat Min Exi Min Mat Total Allies 4 | . . 4 . . . Largest Group 3 | . . 3 3 . . Highest-Rated Group 40 | . . 40 40 . . Highest-Rated Ally 31 | . . 31 16 . . Total Orders 7 | . . . 7 . . STAY 7 | . . . 7 . . Ally Attacks 68 | . . 6 11 30 21 Total Damage 1693 | . . 63 9 1497 124 Kills 18 | . . 3 . 13 2 Allies Corrupted 3 | . . . . 1 2 Allies Melted . | . . . . . . Turrets Deployed 1 | . . . . 1 . Intel | -11 -10 -10 -10 -9 -8 ------- Run | Scr Mat Min Exi Min Mat Robot Analysis Total 3 | . 3 . . . . Derelict Logs Recovered 2 | . . . . 2 . Drone Launches 3 | . . . . 3 . Drone Recoveries 1 | . . . . . 1 Exploration | -11 -10 -10 -10 -9 -8 ------------- Run | Scr Mat Min Exi Min Mat Turns Passed 29947 | 74 2517 2771 4086 18604 1895 Spaces Moved 4771 | 10 897 807 1381 1517 159 Core 115 | . . . . . 115 Treads 4656 | 10 897 807 1381 1517 44 Legs . | . . . . . . Wheels . | . . . . . . Hover . | . . . . . . Flight . | . . . . . . Fastest Speed 50 | 160 160 320 240 240 50 Average Speed 274 | 160 221 320 264 240 757 Slowest Speed 1350 | 160 320 320 320 240 1350 Overloaded Moves . | . . . . . . Propulsion Burnouts . | . . . . . . Robots Hopped . | . . . . . . Cave-ins Triggered 14 | . . . . . 14 Exploration Rate (%) 66 | 3 97 99 90 97 11 Regions Visited 5 Branch Regions 3 Pre-discovered Areas 2 | . . . 1 1 . Known Exits Taken . | . . . . . . Unknown Exits Taken 5 | 1 1 1 1 1 . Scrap Searched 2 | . . 1 . 1 . Spaces Dug 59 | . . . . 24 35 Terrain Destroyed 627 | . 29 . 31 462 105 Melee 15 | . . . . 9 6 Projectile 12 | . . . 4 8 . AOE 600 | . 29 . 27 445 99 Terrain Rammed 3 | . . . . . 3 Walls Destroyed . | . . . . . . Machines Disabled . | . . . . . . Actions | -11 -10 -10 -10 -9 -8 --------- Run | Scr Mat Min Exi Min Mat Total 21110 | 57 1376 957 1676 16240 804 Wait 15689 | 36 346 108 102 14472 625 Move 4755 | 9 896 806 1380 1516 148 Hop . | . . . . . . Pick Up 63 | . 29 5 27 1 1 Fast Attach 11 | 1 1 . 6 2 1 Attach 15 | . 2 . 8 3 2 Detach 2 | . . . . 1 1 Swap 42 | 2 12 8 8 11 1 Drop 58 | 3 10 6 34 4 1 Fire 328 | 6 32 19 77 190 4 Melee 67 | . . . 31 29 7 Ram 2 | . . . . . 2 Kick . | . . . . . . Crush 21 | . 5 5 . 11 . Escape Stasis 11 | . . . . . 11 Rewire . | . . . . . . Trap 46 | . 43 . 3 . . Miscellaneous . | . . . . . . Route ------- -11/Scrapyard -10/Materials (discovered 4 exits: [*Mat x3] / *Min) -10/Mines (discovered 3 exits: [*Mat x2] / *Exi) -10/Exiles -9/Mines (discovered 2 exits: [*Mat x2]) -8/Materials History --------- Turn | Location | Event 17 | -11/Scrapyard | Discovered new exit (range 3) 75 | -11/Scrapyard | Entered Materials 306 | -10/Materials | Build established: Mutant 452 | -10/Materials | Discovered new exit (range 13) 612 | -10/Materials | Discovered new exit (range 12) 791 | -10/Materials | Discovered new exit (range 15) 1440 | -10/Materials | Discovered new exit (range 4) 2338 | -10/Materials | Repaired Lgt. Treads 2592 | -10/Materials | Entered Mines 3231 | -10/Mines | Received a Mining Laser from a helpful Derelict 3425 | -10/Mines | Deemed a non-threat by the Exiles lab entrance 3428 | -10/Mines | Discovered new exit (range 5) 4321 | -10/Mines | Discovered new exit (range 11) 4644 | -10/Mines | Discovered new exit (range 7) 4654 | -10/Mines | Received a Rocket Launcher from a helpful Derelict 4840 | -10/Mines | Joined a pair of Derelicts in attacking an 0b10 outpost 5114 | -10/Mines | Assisted by bots powering up and referring to "LRC-V3" 5363 | -10/Mines | Entered Exiles 5363 | -10/Exiles | Accompanied by 3 allies 5440 | -10/Exiles | Met 8R-AWN 5507 | -10/Exiles | Met EX-HEX 5610 | -10/Exiles | Met EX-BIN 5651 | -10/Exiles | Aligned with FarCom system 5655 | -10/Exiles | Given EX-Vault access code 5751 | -10/Exiles | Opened EX-Vault 5787 | -10/Exiles | Found AWS/Thermal 5852 | -10/Exiles | Warned to stay clear of 0b10 Research branches 5961 | -10/Exiles | Met EX-DEC 6368 | -10/Exiles | Discovered new exit (range 14) 7429 | -10/Exiles | Attacked by the Exiles 7660 | -10/Exiles | Destroyed 8R-AWN 7806 | -10/Exiles | Core integrity fell below 50% 7808 | -10/Exiles | Core integrity fell below 20% 8300 | -10/Exiles | Learned location of Zion (-7) 8514 | -10/Exiles | Destroyed EX-DEC 8541 | -10/Exiles | Destroyed EX-HEX 8604 | -10/Exiles | Destroyed EX-BIN 8696 | -10/Exiles | Found Deploy-a-Sentry 9219 | -10/Exiles | Found System Purifier 9449 | -10/Exiles | Stole two prototypes: AWS/Thermal, Deploy-a-Sentry 9449 | -10/Exiles | Entered Mines 9502 | -9/Mines | Learned 8 Materials zone layouts 9646 | -9/Mines | Discovered new exit (range 12) 10132 | -9/Mines | Assembled infested the area 10144 | -9/Mines | Found the Drone Emporium 10148 | -9/Mines | Learned location of Storage (-9) 10156 | -9/Mines | Found Prototype Device 10156 | -9/Mines | Identified Thief Drone Bay 11089 | -9/Mines | Discovered new exit (range 9) 11330 | -9/Mines | DAS Turret deployed 28053 | -9/Mines | Entered Materials 28053 | -8/Materials | Accompanied by 3 allies 28053 | -8/Materials | Evolved 4 slots: Power x4 28176 | -8/Materials | Crushed by falling debris 28183 | -8/Materials | Crushed by falling debris 28190 | -8/Materials | Crushed by falling debris 28221 | -8/Materials | Lost 4 parts (2n2w) 28307 | -8/Materials | Crushed by falling debris 28364 | -8/Materials | Crushed by falling debris 28407 | -8/Materials | Crushed by falling debris 28474 | -8/Materials | Crushed by falling debris 28482 | -8/Materials | Crushed by falling debris 28821 | -8/Materials | Crushed by falling debris 28822 | -8/Materials | Core integrity fell below 50% 28822 | -8/Materials | System corruption reached 10% 28869 | -8/Materials | Crushed by falling debris 28874 | -8/Materials | Crushed by falling debris 29062 | -8/Materials | Crushed by falling debris 29062 | -8/Materials | Core integrity fell below 20% 29372 | -8/Materials | Crushed by falling debris 29669 | -8/Materials | Crushed by falling debris 29948 | -8/Materials | Core destroyed Last Messages --------------- 29669_ Crushed by falling debris. 29710_ Dropped Autogun. 29710_ Acquired System Purifier. 29718_ H8GQSO%NDYPW V2QL6G4E#RRASZ0EWGQKSHKS 29736_ RNV=DY/Z=EIG6TXRLWRU66G V3Y9T 29757_ GU/4J#JSD>C8OJ74VWJVP|YQHC#I=EJT:|7Z M> 29775_ System corrupted: Matter fused (-5). 29790_ System corrupted: Energy discharge (-28). 29808_ System corrupted: Substantial component data lost. 29823_ System corrupted: Matter fused (-6). 29867_ SY6CCR=2:%WPE Z2%CUYVI8DI6A 29902_ RIGLKGQUZCZI&>QUYCMM :N3LI2UF94GAV 29918_ System corrupted: Matter fused (-10). 29921_ Slammed into Earth. 29921_ Destabilizing: System corrupted (+2). 29933_ 64=PQYSQDSMBLXDOV8HR 29934_ Slammed into Earth. 29934_ Destabilizing: Core damaged (-16). 29948_ Slammed into Earth. 29948_ Destabilizing: Core damaged (-27). Map ----- +----------------------------------------------------+ | #???? | | ###+###########+#####? | | ## #???# #? | | ## #???# ! #? | | ## #???# #? | | ## #???# !!! #? | | ## #???# !!! #? | | ## #???# !! #? | | #############= #? | | # !!%+ + #? | | # ! *[### #? | | # / !#?########"#? | | + #????????###? | | # " " """ #???????## ## | | # "R" """ #?????### # # | | # """ """ #?????# # | | # #?????# ### | | #############???# ### | | #???????#"""#???# # | | #???????#"G"#??## # # | | #????####" "#### ##### | | #????# ### # # | | #????# """ # # | | ####????# """ !! # ## =[ | | ????????# """ ! ## [!## | | ????????# ## ## @ | | ????????# / ## #[ # | | ######### ## #### | | + ######?? | | #############+#####??????? | | ??????????# #????????? | | ??????????# #????????? | | ??????????# #????????? | | ??????????# #????????? | | ??????????# #????????? | | ??????????## ##????????? | | ?#####?????# #########?? | | ?#"""#?????# # #?? | | ##"T"####### + T #?? | | # ## # #?? | | # "" ## ########### | | # "T """ ## # # | | # "" """ ## # # | | # """ ## # """ """ # | | # """ ## # """ """ # | | # """ ## + """ """ # | | # # # # | | #####+###### # # | | ### #### # # | | ????????????????????????? | +----------------------------------------------------+ Best States ------------- Heat Dissipation 31 Energy Generation 18 Energy Capacity 310 Matter Stores 300 Matter Capacity 300 Sight Range 16 Terrain Scan Density 10 Core Shielding 20 Evasion (%) 40 Recoil Reduction 2 Trap Extractor Capacity 4 Item Schematics ----------------- None Robot Schematics ------------------ None Fabricated ------------ Nothing Alien Tech Used ----------------- None Achievements -------------- None Challenges ------------ None Game ------ Seed NavigationAutogunMapper Manual? 0 Play Time 01:10:04 Cumulative 302.0 hours Start 2022.04.24 @ 18:40:37 End 2022.04.24 @ 19:51:04 Sessions 1 Manual Loads 0 Difficulty Rogue Special Mode None Game No. 94 Rogue 94 Adventurer 0 Explorer 0 Win Type - Total 6 Types 3/1/0/0/2/0/0/0/0 Lore% 59 Gallery% 73 Achievement% 66 Wizard Run 0 Options --------- ASCII 0 Keyboard 0 Movement Arrows Keybinds 0 Fullscreen 0 Font 28/SmallcapsGlow Map View 72x54 Tactical HUD 1 Map Filters NONE Filters NONE Steam 1 RUN: 6327a72f-bafa-43cf-ab70-a0ae8f4f2da9